Cogmind - Beta 10.1 @@@ ROGUE MODE // 2020.10.26 @ 21:43:05 Player: Cog Result: Destroyed by D-53 Grenadier with Mini Grenade Launcher Performance ------------- Evolutions (0) 0 Regions Visited (0) 0 Robots Destroyed (5) 25 Value Destroyed (21) 21 Prototype IDs (0) 0 Alien Tech Used (0) 0 Bonus (0) 0 TOTAL SCORE: 46 Bonus ------- None Cogmind --------- Core Integrity 0/250 Matter 300/300 Energy 99/100 System Corruption 1% Temperature Cool (0) Movement Core (100) Ox1 Location -11/Scrapyard Parts ------- > --- POWER (1) -------- (None) > --- PROPULSION (2) --- (None) > --- UTILITY (2) ------ Small Storage Unit > --- WEAPON (2) ------- (None) > --- INVENTORY (6) ---- Ion Engine Light Treads Light Treads Wheel Compact Wheel Small Laser Peak State ------------ > --- POWER ------------ Light Ion Engine > --- PROPULSION ------- Aluminum Leg Aluminum Leg > --- UTILITY ---------- Small Storage Unit Improved Terrain Scanner > --- WEAPON ----------- Medium Laser Light Assault Rifle > --- INVENTORY -------- Ion Engine Light Treads Light Treads Wheel Compact Wheel Small Laser [Rating: 8] Favorites ----------- Power Light Ion Engine Engine Light Ion Engine Propulsion Aluminum Leg Leg Aluminum Leg Utility Small Storage Unit Device Improved Terrain Scanner Storage Small Storage Unit Weapon Medium Laser Energy Gun Medium Laser Ballistic Gun Light Assault Rifle Build | -11 ------- Run | Scr Slots Evolved . | . Power . | . Propulsion . | . Utility . | . Weapon . | . Parts Attached 2 | 2 Power . | . Engine . | . Core . | . Reactor . | . Propulsion . | . Treads . | . Leg . | . Wheel . | . Hover . | . Flight . | . Utility 1 | 1 Device 1 | 1 Storage . | . Processor . | . Hackware . | . Protection . | . Artifact . | . Weapon 1 | 1 Energy Gun . | . Energy Cannon . | . Ballistic Gun 1 | 1 Ballistic Cannon . | . Launcher . | . Special Weapon . | . Impact Weapon . | . Slashing Weapon . | . Piercing Weapon . | . Special Melee Weapon . | . Unidentified Prototypes . | . Parts Lost 6 | 6 Power 1 | 1 Propulsion 2 | 2 Utility 1 | 1 Weapon 2 | 2 Highest Loss Streak 6 | 6 Average Slot Usage (%) . | . Naked Turns . | . Heaviest Build 11 | 11 Greatest Support 20 | 20 Greatest Overweight (x) 1 | 1 Average Overweight (x) . | . Largest Inventory Capacity 6 | 6 Average Capacity 6 | 6 Most Carried 6 | 6 Average Carried 6 | 6 Final Capacity 6 | 6 Final Carried 6 | 6 Class Distribution -------------------- None Dominant Class ---------------- None Resources | -11 ----------- Run | Scr Matter Collected 232 | 232 Remotely . | . Salvage Created 128 | 128 Parts 7 | 7 Haulers Intercepted . | . Recyclers Shooed 1 | 1 Parts Field Recycled . | . Retrieved Matter . | . Parts Self-Destructed . | . Prevented . | . Kills | -11 ------- Run | Scr Combat Hostiles Destroyed 1 | 1 Guns 1 | 1 Classes Destroyed 4 | 4 Worker 1 | 1 Tunneler 2 | 2 Recycler 1 | 1 Assembled 1 | 1 Best Kill Streak 1 | 1 Combat Bots Only 1 | 1 Max Kills in Single Turn 1 | 1 Gunslinging . | . Exploded . | . Melee . | . Uniques/NPCs Destroyed . | . Combat | -11 -------- Run | Scr Damage Taken 768 | 768 Core 253 | 253 Absorbed by Shields . | . Core Remaining (%) . | . Volleys Fired 15 | 15 Largest 2 | 2 Hottest 70 | 70 Shots Fired 29 | 29 Gun 29 | 29 Cannon . | . Launcher . | . Special . | . Kinetic 14 | 14 Thermal 15 | 15 Explosive . | . Electromagnetic . | . Robot Hit Streak 6 | 6 Robot Miss Streak 2 | 2 Penetration Max . | . Secondary Targets 1 | 1 Max Gunslinging Chain 1 | 1 Shots Hit Robots 17 | 17 Core Hits 9 | 9 Critical Hits . | . Critical Kills . | . Critical Parts Destroyed . | . Melee Attacks . | . Impact . | . Slashing . | . Piercing . | . Sneak Attacks . | . Combat Hostiles . | . Follow-up Attacks . | . Damage Inflicted 190 | 190 Guns 190 | 190 Cannons . | . Explosions . | . Melee . | . Ramming . | . Kinetic 53 | 53 Thermal 137 | 137 Explosive . | . Electromagnetic . | . Impact . | . Slashing . | . Piercing . | . Highest Corruption 1 | 1 Average Corruption 1 | 1 Corruption Purged . | . Overload Shots . | . Overflow Damage . | . Projectiles . | . Explosions . | . Melee . | . Knockbacks . | . Impact . | . Kinetic . | . Secondary . | . Self-Inflicted Damage . | . Shots . | . Rammed . | . Targets Rammed . | . Kicked . | . Crushed . | . Highest Temperature 80 | 80 Average Temperature 32 | 32 Received Heat Transfer 80 | 80 Siege Activations . | . Robots Corrupted . | . Combat Hostiles . | . Parts Fried . | . Impact Corruptions . | . Robots Melted . | . Combat Hostiles . | . Parts Melted . | . Heat Transferred 407 | 407 Parts Sabotaged . | . Parts Stolen . | . Parts Stripped . | . Power Chain Reactions . | . Missiles Intercepted . | . Alert | -11 ------- Run | Scr Peak Influence 10 | 10 Initial . | . Average . | . Maximum Alert Level . | . Low Security (%) 100 | 100 Level 1 . | . Level 2 . | . Level 3 . | . Level 4 . | . Level 5 . | . High Security . | . Max Security . | . Squads Dispatched . | . Investigation . | . Extermination . | . Reinforcement . | . Assault . | . Garrison . | . Intercept . | . Construction Impeded . | . Haulers Reinforced . | . Stealth | -11 --------- Run | Scr Distress Signals . | . Communications Jammed . | . Distress Signals . | . Times Spotted 22 | 22 Peak Tracking Total 20 | 20 Tactical Retreats . | . Traps | -11 ------- Run | Scr Traps Triggered . | . Indirectly . | . Trap Hack Attempts . | . Triggered . | . Disarmed . | . Reprogrammed . | . Reused . | . Traps Extracted . | . Installed . | . Triggered . | . Machines | -11 ---------- Run | Scr Machines Disabled . | . Max in Single Turn . | . Machines Sabotaged . | . Garrisons Compromised . | . Overloaded Fab Kills . | . Fab Network Shutdowns . | . Hacking | -11 --------- Run | Scr Machines Accessed . | . Terminals . | . Fabricators . | . Repair Stations . | . Recycling Units . | . Scanalyzers . | . Garrison Access . | . Total Hacks . | . Successful . | . Failed . | . Catastrophic . | . Database Lockouts . | . Manual . | . Terminals . | . Fabricators . | . Repair Stations . | . Recycling Units . | . Scanalyzers . | . Garrison Access . | . Terminal Hacks . | . Fabricator Hacks . | . Repair Station Hacks . | . Recycling Unit Hacks . | . Scanalyzer . | . Garrison Access Hacks . | . Unauthorized Hacks . | . Terminals . | . Fabricators . | . Repair Stations . | . Recycling Units . | . Scanalyzers . | . Garrison Access . | . Data Cores Recovered . | . Used . | . Hacking Detections . | . Full Trace Events . | . Feedback Events . | . Feedback Blocked . | . Robot Schematics Acquired . | . Robots Built . | . Matter . | . Time . | . Total Robot Build Rating . | . Part Schematics Acquired . | . Parts Built . | . Matter . | . Time . | . Total Part Build Rating . | . Parts Repaired . | . Time . | . Parts Recycled . | . Recycled Matter . | . Retrieved Matter . | . Retrieved Components . | . Parts Scanalyzed . | . Part Schematics Acquired . | . Parts Damaged . | . Bothacking | -11 ------------ Run | Scr Used RIF Installer . | . Robots Hacked . | . Non-combat . | . Combat . | . Robot Hacks Applied . | . Relay Couplers Released . | . Robots Rewired . | . Allies Hacked . | . Hacks Repelled . | . Allies | -11 -------- Run | Scr Total Allies . | . Largest Group . | . Highest-Rated Group . | . Highest-Rated Ally . | . Total Orders . | . Ally Attacks . | . Total Damage . | . Kills . | . Allies Corrupted . | . Allies Melted . | . Intel | -11 ------- Run | Scr Robot Analysis Total . | . Derelict Logs Recovered . | . Drone Launches . | . Drone Recoveries . | . Exploration | -11 ------------- Run | Scr Turns Passed 4219 | 4219 Spaces Moved 1202 | 1202 Core 9 | 9 Treads . | . Legs 1193 | 1193 Wheels . | . Hover . | . Flight . | . Fastest Speed 100 | 100 Average Speed 119 | 119 Slowest Speed 120 | 120 Overloaded Moves . | . Propulsion Burnouts . | . Robots Hopped . | . Cave-ins Triggered . | . Exploration Rate (%) 106 | 106 Regions Visited . Branch Regions . Pre-discovered Areas . | . Known Exits Taken . | . Unknown Exits Taken . | . Scrap Searched . | . Spaces Dug . | . Terrain Destroyed . | . Melee . | . Projectile . | . AOE . | . Terrain Rammed . | . Walls Destroyed . | . Machines Disabled . | . Actions | -11 --------- Run | Scr Total 3954 | 3954 Wait 2735 | 2735 Move 1202 | 1202 Hop . | . Pick Up . | . Fast Attach 1 | 1 Attach . | . Detach . | . Swap 1 | 1 Drop . | . Fire 15 | 15 Melee . | . Ram . | . Kick . | . Crush . | . Escape Stasis . | . Rewire . | . Trap . | . Miscellaneous . | . Route ------- -11/Scrapyard (discovered 1 exit: [*Mat]) History --------- Turn | Location | Event 19 | -11/Scrapyard | Discovered new exit (range 2) 4179 | -11/Scrapyard | Assembled infested the area 4215 | -11/Scrapyard | Core integrity fell below 50% 4220 | -11/Scrapyard | Core integrity fell below 20% 4220 | -11/Scrapyard | Destroyed by D-53 Grenadier with Mini Grenade Launcher Last Messages --------------- 04211_ Aluminum Leg destroyed. 04212_ as-10942 destroyed. 04212_ Aluminum Leg destroyed. 04212_ as-17774 destroyed. 04212_ as-24573 destroyed. 04212_ as-69494 destroyed. 04212_ as-39822 destroyed. 04212_ as-69870 destroyed. 04212_ as-06724 destroyed. 04212_ as-07497 destroyed. 04214_ as-09236 destroyed. 04214_ as-47568 destroyed. 04214_ as-07229 destroyed. 04214_ as-51544 destroyed. 04214_ as-04506 destroyed. 04214_ as-37243 destroyed. 04216_ as-06501 destroyed. 04216_ as-39591 destroyed. 04218_ as-06045 destroyed. 04219_ as-48630 destroyed. Map ----- +----------------------------------------------------+ | ???# # #? " ? ?#???#????#???????? | | #??# ## " ? ?????##???????????? | | ???# # #? ?##?#???????##??????? | | ???# # #### ##???#?#???##??#?????? | | ???# # ##?# *##########???#???????? | | ???# # #?## %# ##??#???????? | | ?### # #?## !# #???????????? | | ##### ### ##########?# % #?##????????? | | # # #????##???## # #?#??#??????? | | # ######??#### # #?###???????? | | # # ####### # #??###??????? | | # # # #???????????? | | # ###### ######## # #???????????? | | # ## ##?# # #?#??#??????? | | # ## #?## ##########???##??????? | | # ## ##?# #???#??#???#?????????? | | # ## #### ##?##???????#????????? | | # ## #??# #?#?#???##??#????????? | | # ## #??# #?##???#??#??#???????? | | ########## #?## ##?###???????????????? | | ?##???##?# #??# # ###????##??????????? | | ???#?????############## ##??###????????????? | | ?#???????# ###??#### ####???????????????? | | ??????#??# #?## a #????#?#?????????## | | ?????##??# ### #?????#?####?????# | | ?????#???# # @ #???#### #?????# | | ########## # ##??# #?????# | | # ## # #??# #?????# | | # ## # ##??# #??#??## | | # ## # #??# #??#???? | | # #? # #??# #??????# | | # #### ###### ##### #????#?# | | # d # #?????## | | # # d # #?????#? | | # ## # ###### ## # # ##???### | | # ## ?? # ## #??#?#?# | | # ## # ####### # ######## | | # ## # #?????# # # | | ########## # #????## ######## | | ???????#?# # #???## ####### | | ?????????# # #?#??# | | ?????????# ########????# | | ???#?????# #?????#???#?# ####### | | ?????????# #???????????## ##?????# | | ??#?????## ############## #???#??# | | ?????????# ## # #??????#### ## | | ?????????# ?# # ########### ## | | ?????????? ##??# # # # ## | | ????????#????????# # ## | | ???????????#??#??# # # ## | +----------------------------------------------------+ Best States ------------- Heat Dissipation 25 Energy Generation 10 Energy Capacity 125 Matter Stores 300 Matter Capacity 300 Sight Range 16 Terrain Scan Range 16 Terrain Scan Density 10 Evasion (%) 40 Item Schematics ----------------- None Robot Schematics ------------------ None Fabricated ------------ Nothing Alien Tech Used ----------------- None Achievements -------------- Curiosity Killed The Cat Challenges ------------ None Game ------ Seed ProtonShockChip Manual? 0 Play Time 00:13:40 Cumulative 87.9 hours Start 2020.10.26 @ 20:10:43 End 2020.10.26 @ 21:43:05 Sessions 2 Manual Loads 0 Difficulty Rogue Special Mode None Game No. 99 Rogue 99 Adventurer 0 Explorer 0 Win Type - Total 1 Types 1/0/0/0/0/0/0/0/0 Lore% 54 Gallery% 60 Achievement% 46 Wizard Run 0 Options --------- ASCII 0 Keyboard 0 Movement Numpad Keybinds 0 Fullscreen 1 Font 24/Smallcaps Map View 76x50 Tactical HUD 1 Map Filters NONE Filters NONE Steam 1 RUN: 166a1e3e-de34-46d8-99d7-1c41d724c1f3